fUST/lending_fUST_20250421
["ID","MTS","AMOUNT","RATE_DAILY","PERIOD"]
[358459980,1745170241888,-171.869442,0.00016961,2]
[358459982,1745170241897,-253.253952,0.00016961,2]
[358459984,1745170241907,-403.376511,0.00016961,2]
[358459986,1745170241916,-403.376511,0.00016961,2]
[358459988,1745170241926,-403.376511,0.00016961,2]
[358459991,1745170241937,-403.376511,0.00016961,2]
[358459992,1745170241947,-403.376511,0.00016961,2]
[358459995,1745170241957,-403.376511,0.00016961,2]
[358459997,1745170241967,-403.376511,0.00016961,2]
[358459998,1745170241976,-403.376511,0.00016961,2]
[358460001,1745170241986,-501.55593221,0.00016973,2]
[358460003,1745170241995,-500.0,0.00016973,2]
[358460005,1745170242005,-500.0,0.00016973,2]
[358460007,1745170242014,-151.0,0.00016995,2]
[358460009,1745170242024,-151.0,0.00016995,2]
[358460011,1745170242034,-151.0,0.00016995,2]
[358460013,1745170242045,-151.0,0.00016995,2]
[358460015,1745170242056,-151.0,0.00016996,2]
[358460017,1745170242065,-623.18383974,0.00016996,2]
[358460019,1745170242074,-412.9016927,0.00016996,2]
[358460043,1745170242275,-167.80544772,0.00016996,2]
[358460046,1745170242284,-545.897072,0.00016997,2]
[358460048,1745170242293,-360.10928307,0.00016997,2]
[358460051,1745170242304,-185.78778893,0.00016997,2]
[358460054,1745170242313,-71.59221091,0.00016998,2]
[358460057,1745170242324,-79.40778909,0.00016998,2]
[358460061,1745170242334,-151.0,0.00016998,2]
[358460065,1745170242343,-1306.33783973,0.00017,2]
[358460125,1745170242870,-151.0,0.00016754,2]
[358460128,1745170242881,-151.0,0.00016754,2]
[358460130,1745170242890,-151.0,0.00016754,2]
[358460132,1745170242900,-151.0,0.00016755,2]
[358460134,1745170242910,-339.09615219,0.00017,2]
[358460136,1745170242922,-795.22970098,0.00017,2]
[358460138,1745170242933,-682.02225995,0.00017,2]
[358460141,1745170242945,-691.08850878,0.00017,2]
[358460143,1745170242955,-507.56795448,0.00017061,2]
[358460431,1745170245748,-789.89999992,0.00017061,2]
[358460438,1745170245804,-2185.43181,0.00017061,2]
[358460444,1745170245859,-1275.3002356,0.00017061,2]
[358460446,1745170245868,-2650.48421778,0.00017061,2]
[358460449,1745170245878,-173.746824,0.00017061,2]
[358460451,1745170245888,-151.0,0.00017061,2]
[358460453,1745170245897,-151.0,0.00017061,2]
[358460455,1745170245909,-1635.25945848,0.00017061,2]
[358460457,1745170245919,-2924.3,0.0001711,2]
[358460459,1745170245929,-2924.3,0.0001711,2]
[358460461,1745170245938,-2924.3,0.0001711,2]
[358460463,1745170245947,-2924.3,0.0001711,2]
[358460465,1745170245957,-2924.3,0.0001711,2]
[358460467,1745170245966,-2924.3,0.0001711,2]
[358460469,1745170245975,-1271.67684169,0.0001711,2]
[358461028,1745170637570,9982.56,0.0001501,2]
[358461072,1745171004591,5000.0,0.00017,4]
[358461112,1745171431793,-1685.28989609,0.00015041,2]
[358461118,1745171431847,-100.66273781,0.00015041,2]
[358461120,1745171431857,-288.7698945,0.00015107,2]
[358461122,1745171431866,-250.0,0.00015187,2]
[358461124,1745171431875,-292.7475352,0.0001531,2]
[358461126,1745171431885,-924.6145967,0.00015381,2]
[358461128,1745171431895,-208.9231098,0.00015477,2]
[358461130,1745171431904,-1714.9150212,0.00015536,2]
[358461131,1745171431913,-221.44262642,0.00015641,2]
[358461134,1745171432002,-26.13844078,0.00015641,2]
[358461135,1745171432012,-2726.8656169,0.00015651,2]
[358461136,1745171432022,-543.21663503,0.00016179,2]
[358461137,1745171432031,-1267.6675346,0.00016191,2]
[358461138,1745171432041,-162.04550489,0.00016548,2]
[358461139,1745171432051,-162.04550489,0.00016554,2]
[358461140,1745171432061,-300.0,0.00016645,2]
[358461141,1745171432072,-300.0,0.00016645,2]
[358461142,1745171432082,-156.56010388,0.00016646,2]
[358461143,1745171432094,-719.71994991,0.00016646,2]
[358461144,1745171432104,-719.71994991,0.00016646,2]
[358461145,1745171432115,-719.71994991,0.00016646,2]
[358461146,1745171432125,-719.71994991,0.00016646,2]
[358461147,1745171432134,-719.71994991,0.00016646,2]
[358461148,1745171432145,-719.71994991,0.00016646,2]
[358461149,1745171432157,-719.71994991,0.00016646,2]
[358461150,1745171432168,-719.71994991,0.00016646,2]
[358461151,1745171432177,-500.0,0.00016646,2]
[358461152,1745171432187,-719.71994991,0.00016646,2]
[358461153,1745171432197,-500.0,0.00016646,2]
[358461154,1745171432207,-719.71994991,0.00016646,2]
[358461155,1745171432216,-500.0,0.00016646,2]
[358461156,1745171432226,-719.71994991,0.00016646,2]
[358461157,1745171432236,-500.0,0.00016646,2]
[358461158,1745171432245,-719.71994991,0.00016646,2]
[358461159,1745171432255,-719.71994991,0.00016646,2]
[358461160,1745171432265,-500.0,0.00016646,2]
[358461161,1745171432275,-719.71994991,0.00016646,2]
[358461162,1745171432284,-719.71994991,0.00016646,2]
[358461163,1745171432294,-719.71994991,0.00016646,2]
[358461164,1745171432303,-500.0,0.00016646,2]
[358461165,1745171432313,-719.71994991,0.00016646,2]
[358461166,1745171432323,-500.0,0.00016646,2]
[358461167,1745171432333,-719.71994991,0.00016646,2]
[358461168,1745171432342,-500.0,0.00016646,2]
[358461169,1745171432352,-719.71994991,0.00016646,2]
[358461170,1745171432361,-500.0,0.00016646,2]
[358461171,1745171432371,-719.71994991,0.00016646,2]
[358461172,1745171432380,-500.0,0.00016646,2]
[358461173,1745171432389,-719.71994991,0.00016646,2]
[358461174,1745171432398,-719.71994991,0.00016646,2]
[358461175,1745171432408,-719.71994991,0.00016646,2]
[358461176,1745171432418,-719.71994991,0.00016646,2]
[358461177,1745171432427,-719.71994991,0.00016646,2]
[358461178,1745171432437,-719.71994991,0.00016646,2]
[358461179,1745171432447,-719.71994991,0.00016646,2]
[358461180,1745171432456,-719.71994991,0.00016646,2]
[358461181,1745171432466,-719.71994991,0.00016646,2]
[358461182,1745171432476,-719.71994991,0.00016646,2]
[358461183,1745171432485,-719.71994991,0.00016646,2]
[358461184,1745171432495,-719.71994991,0.00016646,2]
[358461185,1745171432505,-719.71994991,0.00016646,2]
[358461186,1745171432515,-719.71994991,0.00016646,2]
[358461187,1745171432524,-719.71994991,0.00016646,2]
[358461188,1745171432534,-719.71994991,0.00016646,2]
[358461189,1745171432544,-719.71994991,0.00016646,2]
[358461190,1745171432553,-719.71994991,0.00016646,2]
[358461191,1745171432563,-719.71994991,0.00016646,2]
[358461192,1745171432573,-719.71994991,0.00016646,2]
[358461193,1745171432582,-719.71994991,0.00016646,2]
[358461194,1745171432592,-719.71994991,0.00016646,2]
[358461195,1745171432601,-719.71994991,0.00016646,2]
[358461196,1745171432611,-719.71994991,0.00016646,2]
[358461197,1745171432620,-719.71994991,0.00016646,2]
[358461198,1745171432630,-719.71994991,0.00016646,2]
[358461199,1745171432639,-719.71994991,0.00016646,2]
[358461200,1745171432650,-2902.69509844,0.00016646,2]
[358461201,1745171432659,-2902.69509844,0.00016646,2]
[358461202,1745171432669,-2902.69509844,0.00016646,2]
[358461203,1745171432678,-2902.69509844,0.00016646,2]
[358461204,1745171432688,-2902.69509844,0.00016646,2]
[358461205,1745171432697,-2902.69509844,0.00016646,2]
[358461206,1745171432707,-2902.69509844,0.00016646,2]
[358461207,1745171432717,-2902.69509844,0.00016646,2]
[358461208,1745171432727,-2902.69509844,0.00016646,2]
[358461209,1745171432736,-2902.69509844,0.00016646,2]
[358461210,1745171432746,-2902.69509844,0.00016646,2]
[358461211,1745171432755,-2902.69509844,0.00016646,2]
[358461212,1745171432765,-2902.69509844,0.00016646,2]
[358461213,1745171432774,-2902.69509844,0.00016646,2]
[358461214,1745171432784,-2902.69509844,0.00016646,2]
[358461215,1745171432795,-2902.69509844,0.00016646,2]
[358461216,1745171432805,-2902.69509844,0.00016646,2]
[358461217,1745171432815,-2902.69509844,0.00016646,2]
[358461218,1745171432824,-2902.69509844,0.00016646,2]
[358461219,1745171432833,-2902.69509844,0.00016646,2]
[358461220,1745171432843,-2902.69509844,0.00016646,2]
[358461221,1745171432853,-2902.69509844,0.00016646,2]
[358461222,1745171432863,-2902.69509844,0.00016646,2]
[358461223,1745171432873,-2902.69509844,0.00016646,2]
[358461224,1745171432883,-2902.69509844,0.00016646,2]
[358461225,1745171432894,-2902.69509844,0.00016646,2]
[358461226,1745171432904,-2902.69509844,0.00016646,2]
[358461227,1745171432915,-2902.69509844,0.00016646,2]
[358461228,1745171432926,-2902.69509844,0.00016646,2]
[358461229,1745171432941,-2902.69509844,0.00016646,2]
[358461230,1745171432951,-2902.69509844,0.00016646,2]
[358461231,1745171432961,-2902.69509844,0.00016646,2]
[358461232,1745171432971,-559.80435373,0.00016646,2]
[358461233,1745171432985,-2342.89074471,0.00016646,2]
[358461234,1745171432996,-2902.69509844,0.00016646,2]
[358461235,1745171433005,-2902.69509846,0.00016646,2]
[358461236,1745171433015,-2902.69509846,0.00016646,2]
[358461237,1745171433025,-2902.69509846,0.00016646,2]
[358461238,1745171433034,-2902.69509846,0.00016646,2]
[358461239,1745171433044,-2902.69509846,0.00016646,2]
[358461240,1745171433054,-2902.69509846,0.00016646,2]
[358461241,1745171433063,-2902.69509846,0.00016646,2]
[358461242,1745171433072,-300.0,0.00016646,2]
[358461243,1745171433082,-243.875169,0.00016646,2]
[358461244,1745171433091,-243.875169,0.00016646,2]
[358461245,1745171433101,-151.0,0.00016646,2]
[358461246,1745171433110,-151.0,0.00016646,2]
[358461247,1745171433120,-151.0,0.00016646,2]
[358461248,1745171433129,-154.861119,0.00016646,2]
[358461249,1745171433139,-151.0,0.00016647,2]
[358461250,1745171433148,-151.0,0.00016647,2]
[358461251,1745171433158,-151.0,0.00016647,2]
[358461252,1745171433168,-151.0,0.00016648,2]
[358461253,1745171433178,-151.0,0.00016648,2]
[358461254,1745171433188,-151.0,0.00016648,2]
[358461255,1745171433198,-151.0,0.00016649,2]
[358461256,1745171433207,-277.647525,0.00016649,2]
[358461257,1745171433235,-151.0,0.0001665,2]
[358461258,1745171433245,-151.0,0.0001665,2]
[358461259,1745171433255,-151.0,0.0001665,2]
[358461260,1745171433264,-151.0,0.0001665,2]
[358461261,1745171433274,-151.0,0.0001665,2]
[358461262,1745171433283,-151.0,0.0001665,2]
[358461263,1745171433293,-151.0,0.0001665,2]
[358461264,1745171433302,-151.0,0.00016651,2]
[358461265,1745171433312,-151.0,0.00016651,2]
[358461266,1745171433322,-151.0,0.00016651,2]
[358461267,1745171433332,-151.0,0.00016651,2]
[358461268,1745171433341,-151.0,0.00016651,2]
[358461269,1745171433494,-198.0,0.00016652,2]
[358461270,1745171433504,-245.0,0.00016652,2]
[358461271,1745171433514,-198.0,0.00016652,2]
[358461272,1745171433523,-273.74,0.00016652,2]
[358461273,1745171433533,-1000.0,0.00016653,2]
[358461274,1745171433543,-483.81422467,0.00016653,2]
[358461275,1745171433553,-181.6478664,0.00016653,2]
[358461276,1745171433563,-222.03035,0.00016653,2]
[358461277,1745171433573,-29824.80541734,0.00016654,2]
[358461308,1745171438112,-151.0,0.00016646,2]
[358461310,1745171438122,-7757.899983,0.00016654,2]
[358461312,1745171438135,-908.7836263,0.00016654,2]
[358461315,1745171438146,-4034.35364057,0.00016654,2]
[358461317,1745171438158,-9724.78367104,0.00016654,2]
[358461419,1745171440198,-1502.2142393,0.00016654,2]
[358461420,1745171440211,-42197.93585289,0.00016654,2]
[358461421,1745171440252,-993.56870196,0.00016654,2]
[358461435,1745171442974,-548.67886231,0.00016654,2]
[358461436,1745171443025,-3825.00000137,0.00016654,2]
[358461448,1745171445995,-3598.68252084,0.00016654,2]
[358461542,1745172631993,-1000.0,0.0001521,2]
[358461543,1745172632005,-250.0,0.00015763,2]
[358461544,1745172632016,-300.0,0.00015972,2]
[358461545,1745172632027,-300.0,0.00015972,2]
[358461546,1745172632038,-300.0,0.00015972,2]
[358461547,1745172632048,-24900.0,0.00015973,2]
[358461548,1745172632059,-312.86713018,0.00016179,2]
[358461549,1745172632069,-2924.8,0.00016654,2]
[358461550,1745172632080,-208.42721502,0.00017014,2]
[358461551,1745172632091,-208.42721499,0.00017086,2]
[358461552,1745172632102,-183.66314054,0.00017109,2]
[358461553,1745172632112,-936.70005828,0.00017109,2]
[358461556,1745172632123,-10823.16777568,0.00017109,2]
[358461559,1745172632134,-1652.62315831,0.0001711,2]
[358461561,1745172632145,-319.0,0.00017114,2]
[358461563,1745172632155,-319.0,0.00017114,2]
[358461565,1745172632167,-319.0,0.00017114,2]
[358461567,1745172632177,-319.0,0.00017114,2]
[358461570,1745172632188,-319.0,0.00017114,2]
[358461572,1745172632199,-319.0,0.00017114,2]
[358461574,1745172632209,-319.0,0.00017114,2]
[358461576,1745172632219,-319.0,0.00017114,2]
[358461578,1745172632230,-319.0,0.00017114,2]
[358461580,1745172632241,-319.0,0.00017114,2]
[358461583,1745172632252,-319.0,0.00017114,2]
[358461585,1745172632263,-319.0,0.00017114,2]
[358461587,1745172632274,-319.0,0.00017114,2]
[358461589,1745172632284,-319.0,0.00017114,2]
[358461591,1745172632295,-319.0,0.00017114,2]
[358461594,1745172632306,-319.0,0.00017114,2]
[358461596,1745172632317,-319.0,0.00017114,2]
[358461598,1745172632328,-319.0,0.00017114,2]
[358461600,1745172632339,-319.0,0.00017114,2]
[358461602,1745172632350,-319.0,0.00017114,2]
[358461605,1745172632366,-319.0,0.00017114,2]
[358461607,1745172632376,-319.0,0.00017114,2]
[358461608,1745172632387,-319.0,0.00017114,2]
[358461609,1745172632399,-319.0,0.00017114,2]
[358461610,1745172632411,-431.67920487,0.00017114,2]
[358461611,1745172632422,-359.0,0.00017114,2]
[358461612,1745172632435,-359.0,0.00017114,2]
[358461613,1745172632447,-359.0,0.00017114,2]
[358461614,1745172632458,-359.0,0.00017114,2]
[358461615,1745172632469,-359.0,0.00017114,2]
[358461616,1745172632480,-359.0,0.00017114,2]
[358461617,1745172632490,-359.0,0.00017114,2]
[358461618,1745172632501,-359.0,0.00017114,2]
[358461619,1745172632511,-359.0,0.00017114,2]
[358461620,1745172632521,-359.0,0.00017114,2]
[358461623,1745172632738,-359.0,0.00017114,2]
[358461625,1745172632756,-359.0,0.00017114,2]
[358461627,1745172632766,-359.0,0.00017114,2]
[358461628,1745172632776,-359.0,0.00017114,2]
[358461629,1745172632785,-359.0,0.00017114,2]
[358461630,1745172632795,-359.0,0.00017114,2]
[358461631,1745172632805,-359.0,0.00017114,2]
[358461632,1745172632814,-359.0,0.00017114,2]
[358461633,1745172632823,-359.0,0.00017114,2]
[358461634,1745172632832,-359.0,0.00017114,2]
[358461635,1745172632842,-359.0,0.00017114,2]
[358461636,1745172632851,-359.0,0.00017114,2]
[358461637,1745172632861,-359.0,0.00017114,2]
[358461638,1745172632871,-388.0938451,0.00017114,2]
[358461639,1745172632880,-300.83333432,0.00017114,2]
[358461640,1745172632889,-151.0,0.00017114,2]
[358461641,1745172632898,-245.0,0.00017114,2]
[358461642,1745172632907,-208.42721499,0.00017157,2]
[358461644,1745172632916,-151.0,0.00017225,2]
[358461646,1745172632925,-151.0,0.00017225,2]
[358461647,1745172632935,-208.42721499,0.00017229,2]
[358461649,1745172632944,-208.42721499,0.000173,2]
[358461650,1745172632954,-151.0,0.00017362,2]
[358461651,1745172632963,-246.58857584,0.00017362,2]
[358461652,1745172632974,-500.0,0.00017373,2]
[358461653,1745172632984,-600.21722969,0.00017373,2]
[358461654,1745172632993,-500.0,0.00017373,2]
[358461655,1745172633003,-500.0,0.00017373,2]
[358461656,1745172633012,-500.0,0.00017373,2]
[358461657,1745172633022,-500.0,0.00017373,2]
[358461658,1745172633032,-500.0,0.00017373,2]
[358461659,1745172633041,-500.0,0.00017373,2]
[358461660,1745172633051,-500.0,0.00017373,2]
[358461661,1745172633061,-500.0,0.00017373,2]
[358461662,1745172633071,-500.0,0.00017373,2]
[358461663,1745172633080,-500.0,0.00017373,2]
[358461664,1745172633090,-500.0,0.00017373,2]
[358461665,1745172633099,-500.0,0.00017373,2]
[358461666,1745172633109,-500.0,0.00017373,2]
[358461667,1745172633118,-500.0,0.00017373,2]
[358461668,1745172633127,-500.0,0.00017373,2]
[358461669,1745172633136,-500.0,0.00017373,2]
[358461670,1745172633146,-500.0,0.00017373,2]
[358461671,1745172633155,-622.30459755,0.00017373,2]
[358461672,1745172633165,-455.78386905,0.00017373,2]
[358461673,1745172633175,-500.0,0.00017373,2]
[358461674,1745172633185,-500.0,0.00017373,2]
[358461675,1745172633194,-502.60416933,0.00017373,2]
[358461676,1745172633203,-501.22707382,0.00017373,2]
[358461677,1745172633213,-500.0,0.00017373,2]
[358461678,1745172633222,-500.0,0.00017373,2]
[358461679,1745172633232,-500.0,0.00017373,2]
[358461680,1745172633242,-500.0,0.00017373,2]
[358461681,1745172633251,-500.0,0.00017373,2]
[358461682,1745172633261,-500.0,0.00017373,2]
[358461683,1745172633270,-500.0,0.00017373,2]
[358461684,1745172633280,-500.02184784,0.00017373,2]
[358461685,1745172633289,-500.0,0.00017373,2]
[358461686,1745172633299,-500.0,0.00017373,2]
[358461687,1745172633309,-500.0,0.00017373,2]
[358461688,1745172633319,-500.0,0.00017373,2]
[358461689,1745172633329,-474.00146363,0.00017392,2]
[358461690,1745172633338,-500.0,0.00017392,2]
[358461691,1745172633348,-500.0,0.00017392,2]
[358461692,1745172633361,-500.0,0.00017392,2]
[358461693,1745172633371,-500.0,0.00017392,2]
[358461694,1745172633381,-500.0,0.00017392,2]
[358461695,1745172633391,-162.06569317,0.00017392,2]
[358461696,1745172633401,-500.0,0.00017392,2]
[358461697,1745172633411,-500.0,0.00017392,2]
[358461698,1745172633421,-500.0,0.00017392,2]
[358461699,1745172633431,-500.0,0.00017392,2]
[358461700,1745172633440,-500.0,0.00017392,2]
[358461701,1745172633450,-500.0,0.00017392,2]
[358461702,1745172633460,-500.0,0.00017392,2]
[358461703,1745172633469,-500.0,0.00017392,2]
[358461704,1745172633479,-500.0,0.00017392,2]
[358461705,1745172633490,-500.0,0.00017392,2]
[358461706,1745172633500,-500.0,0.00017392,2]
[358461707,1745172633510,-500.0,0.00017392,2]
[358461708,1745172633520,-500.0,0.00017392,2]
[358461709,1745172633529,-500.0,0.00017392,2]
[358461710,1745172633539,-500.0,0.00017392,2]
[358461711,1745172633549,-500.0,0.00017392,2]
[358461712,1745172633558,-500.0,0.00017392,2]
[358461713,1745172633568,-500.0,0.00017392,2]
[358461714,1745172633578,-154.76908822,0.00017392,2]
[358461715,1745172633588,-500.0,0.00017392,2]
[358461716,1745172633598,-500.0,0.00017392,2]
[358461717,1745172633608,-500.0,0.00017392,2]
[358461718,1745172633617,-500.0,0.00017392,2]
[358461719,1745172633627,-500.0,0.00017392,2]
[358461720,1745172633637,-500.0,0.00017392,2]
[358461721,1745172633647,-500.0,0.00017392,2]
[358461722,1745172633657,-500.0,0.00017392,2]
[358461723,1745172633668,-500.0,0.00017392,2]
[358461724,1745172633678,-500.0,0.00017392,2]
[358461725,1745172633688,-548.44243959,0.00017392,2]
[358461726,1745172633699,-500.0,0.00017392,2]
[358461727,1745172633709,-500.0,0.00017392,2]
[358461728,1745172633719,-500.0,0.00017392,2]
[358461729,1745172633730,-500.0,0.00017392,2]
[358461730,1745172633739,-500.0,0.00017392,2]
[358461731,1745172633749,-500.0,0.00017392,2]
[358461732,1745172633759,-500.0,0.00017392,2]
[358461733,1745172633768,-500.0,0.00017392,2]
[358461734,1745172633778,-500.0,0.00017392,2]
[358461735,1745172633787,-500.0,0.00017392,2]
[358461736,1745172633798,-500.0,0.00017392,2]
[358461737,1745172633807,-500.0,0.00017392,2]
[358461738,1745172633818,-500.0,0.00017392,2]
[358461739,1745172633828,-500.0,0.00017392,2]
[358461740,1745172633837,-500.0,0.00017392,2]
[358461741,1745172633847,-500.0,0.00017392,2]
[358461742,1745172633856,-500.0,0.00017392,2]
[358461743,1745172633866,-500.0,0.00017392,2]
[358461744,1745172633876,-500.0,0.00017392,2]
[358461745,1745172633885,-500.0,0.00017392,2]
[358461746,1745172633895,-500.0,0.00017392,2]
[358461747,1745172633905,-500.0,0.00017392,2]
[358461748,1745172633914,-500.0,0.00017392,2]
[358461749,1745172633924,-500.0,0.00017392,2]
[358461750,1745172633934,-500.0,0.00017392,2]
[358461751,1745172633944,-500.0,0.00017392,2]
[358461752,1745172633953,-500.0,0.00017392,2]
[358461753,1745172633963,-500.0,0.00017392,2]
[358461754,1745172633973,-500.0,0.00017392,2]
[358461755,1745172633983,-581.18486365,0.00017392,2]
[358461756,1745172633992,-456.92175731,0.00017392,2]
[358461780,1745172638150,-372.71656837,0.00017014,2]
[358461782,1745172638161,-500.0,0.00017391,2]
[358461784,1745172638170,-367.64264156,0.00017391,2]
[358461786,1745172638180,-507.53544329,0.00017399,2]
[358461788,1745172638190,-181.95683321,0.00017399,2]
[358461790,1745172638199,-1938.04161908,0.000174,2]
[358461793,1745172638210,-1538.0126962,0.000174,2]
[358461804,1745172638309,-7880.61719588,0.000174,2]
[358461806,1745172638320,-403.19028049,0.000174,2]
[358461809,1745172638332,-530.67,0.000174,2]
[358461811,1745172638343,-22220.77479472,0.000174,2]
[358461814,1745172638368,-23721.38184744,0.000174,2]
[358461816,1745172638377,-934.86061218,0.000174,3]
[358461818,1745172638386,-30411.59591437,0.000174,2]
[358461901,1745172640446,-2000.0,0.000174,2]
[358461902,1745172640458,-1568.40889104,0.000174,2]
[358461903,1745172640469,-512.37431689,0.000174,2]
[358461905,1745172643204,-659.2907214,0.000174,2]
[358461947,1745172646233,-807.18846441,0.000174,2]
[358461948,1745172646287,-3593.7,0.000174,2]
[358461949,1745172646299,-36134.51541297,0.000174,2]
[358462060,1745173473639,307.08,0.00017,120]
[358462147,1745173838344,-1000.0,0.0001511,2]
[358462149,1745173838353,-212.43712123,0.0001511,2]
[358462151,1745173838363,-250.0,0.0001511,2]
[358462153,1745173838372,-300.0,0.00016326,2]
[358462155,1745173838381,-129.60307476,0.00016326,2]
[358462157,1745173838392,-170.39692524,0.00016326,2]
[358462159,1745173838401,-300.0,0.00016326,2]
[358462162,1745173838413,-5704.4185361,0.00016327,2]
[358462163,1745173838422,-857.8020808,0.00016428,2]
[358462166,1745173838434,-3184.8628731,0.00016428,2]
[358462168,1745173838443,-496.79849646,0.00017273,2]
[358462170,1745173838454,-5568.550974,0.00017273,2]
[358462172,1745173838464,-1509.89188768,0.00017273,2]
[358462174,1745173838476,-4019.25548696,0.00017273,2]
[358462208,1745173840491,-8201.4784829,0.00017273,2]
[358462209,1745173840503,-13157.905602,0.00017273,2]
[358462210,1745173840546,-3306.70610337,0.00017273,2]
[358462211,1745173840558,-1000.9806409,0.00017273,2]
[358462212,1745173840570,-938.96963734,0.00017273,2]
[358462218,1745173843318,-1642.55237028,0.00017273,2]
[358462220,1745173843328,-267.081938,0.0001739,2]
[358462221,1745173843338,-739.32286818,0.000174,2]
[358462222,1745173843348,-402.0,0.00017435,2]
[358462223,1745173843357,-708.0,0.00017435,2]
[358462224,1745173843366,-551.834,0.00017435,2]
[358462225,1745173843376,-500.0,0.00017473,2]
[358462226,1745173843385,-502.40837335,0.00017473,2]
[358462228,1745173843395,-500.0,0.00017473,2]
[358462229,1745173843405,-500.0,0.00017473,2]
[358462230,1745173843414,-500.0,0.00017473,2]
[358462231,1745173843423,-500.0,0.00017473,2]
[358462233,1745173843432,-500.0,0.00017473,2]
[358462234,1745173843441,-500.0,0.00017473,2]
[358462235,1745173843450,-500.0,0.00017473,2]
[358462236,1745173843459,-500.0,0.00017473,2]
[358462237,1745173843469,-501.62193196,0.00017473,2]
[358462238,1745173843479,-500.0,0.00017473,2]
[358462239,1745173843488,-500.0,0.00017473,2]
[358462240,1745173843497,-502.34047415,0.00017473,2]
[358462241,1745173843507,-500.0,0.00017473,2]
[358462242,1745173843517,-500.0,0.00017473,2]
[358462243,1745173843527,-500.0,0.00017473,2]
[358462244,1745173843536,-500.0,0.00017473,2]
[358462245,1745173843546,-500.0,0.00017473,2]
[358462246,1745173843555,-500.0,0.00017473,2]
[358462247,1745173843565,-500.0,0.00017473,2]
[358462248,1745173843574,-500.0,0.0001749,2]
[358462249,1745173843583,-500.0,0.0001749,2]
[358462250,1745173843592,-500.0,0.0001749,2]
[358462251,1745173843601,-500.0,0.0001749,2]
[358462252,1745173843611,-535.12593073,0.0001749,2]
[358462253,1745173843620,-500.0,0.0001749,2]
[358462254,1745173843629,-357.27710966,0.0001749,2]
[358462262,1745173846366,-2247.0,0.00017435,2]
[358462263,1745173846375,-142.72289034,0.0001749,2]
[358462264,1745173846384,-500.0,0.0001749,2]
[358462265,1745173846393,-115.18086512,0.0001749,2]
[358462319,1745175032771,-300.0,0.00017383,2]
[358462320,1745175032781,-300.0,0.00017383,2]
[358462321,1745175032791,-300.0,0.00017383,2]
[358462322,1745175032800,-544.0,0.00017384,2]
[358462323,1745175032810,-708.0,0.00017384,2]
[358462324,1745175032819,-85.61302906,0.00017384,2]
[358462325,1745175032854,-2133.38697094,0.00017384,2]
[358462326,1745175032864,-402.0,0.00017384,2]
[358462327,1745175032873,-193.695,0.00017384,2]
[358462328,1745175032883,-3774.16922667,0.00017391,2]
[358462329,1745175032894,-1963.51672091,0.00017391,2]
[358462330,1745175032906,-33498.5587223,0.00017391,2]
[358462331,1745175032915,-495.97202153,0.00017473,2]
[358462332,1745175033039,-4.02797847,0.00017473,2]
[358462333,1745175033049,-500.0,0.00017473,2]
[358462334,1745175033059,-500.0,0.00017473,2]
[358462335,1745175033069,-443.15491915,0.00017473,2]
[358462344,1745175038610,-42.84478369,0.00017473,2]
[358462345,1745175038620,-500.0,0.00017473,2]
[358462346,1745175038632,-500.0,0.00017473,2]
[358462347,1745175038643,-500.0,0.00017473,2]
[358462348,1745175038654,-500.0,0.00017473,2]
[358462349,1745175038666,-500.0,0.00017473,2]
[358462350,1745175038675,-500.0,0.00017473,2]
[358462351,1745175038684,-500.0,0.00017473,2]